fUSD/lending_fUSD_20250221
["ID","MTS","AMOUNT","RATE_DAILY","PERIOD"]
[353938660,1740157843040,-500.0,0.00013424,2]
[353938661,1740157843050,-500.0,0.00013424,2]
[353938662,1740157843059,-500.0,0.00013424,2]
[353938663,1740157843068,-500.0,0.00013424,2]
[353938664,1740157843077,-500.0,0.00013424,2]
[353938665,1740157843086,-500.0,0.00013424,2]
[353938666,1740157843095,-500.0,0.00013424,2]
[353938668,1740157843105,-500.0,0.00013424,2]
[353938669,1740157843114,-500.0,0.00013424,2]
[353938671,1740157843123,-500.0,0.00013424,2]
[353938672,1740157843132,-500.0,0.00013424,2]
[353938673,1740157843142,-500.0,0.00013424,2]
[353938674,1740157843151,-500.0,0.00013424,2]
[353938675,1740157843164,-500.0,0.00013424,2]
[353938676,1740157843174,-500.0,0.00013424,2]
[353938677,1740157843183,-500.0,0.00013424,2]
[353938678,1740157843193,-581.42,0.00013424,2]
[353938679,1740157843202,-500.0,0.00013424,2]
[353938680,1740157843212,-500.0,0.00013424,2]
[353938681,1740157843222,-1160.99,0.00013424,2]
[353938682,1740157843232,-741.43,0.00013424,2]
[353938683,1740157843242,-500.0,0.00013424,2]
[353938684,1740157843251,-500.0,0.00013424,2]
[353938685,1740157843261,-500.0,0.00013424,2]
[353938686,1740157843270,-500.0,0.00013424,2]
[353938687,1740157843280,-513.65,0.00013424,2]
[353938688,1740157843289,-500.0,0.00013424,2]
[353938689,1740157843299,-500.0,0.00013424,2]
[353938690,1740157843308,-500.0,0.00013424,2]
[353938691,1740157843317,-500.0,0.00013424,2]
[353938692,1740157843327,-707.37,0.00013424,2]
[353938693,1740157843336,-500.0,0.00013424,2]
[353938694,1740157843346,-500.0,0.00013424,2]
[353938695,1740157843355,-765.38,0.00013424,2]
[353938696,1740157843364,-500.0,0.00013424,2]
[353938697,1740157843374,-500.0,0.00013424,2]
[353938698,1740157843383,-500.0,0.00013424,2]
[353938699,1740157843392,-500.0,0.00013424,2]
[353938700,1740157843401,-520.81,0.00013424,2]
[353938701,1740157843415,-500.0,0.00013424,2]
[353938702,1740157843425,-500.0,0.00013424,2]
[353938703,1740157843434,-500.0,0.00013424,2]
[353938704,1740157843444,-500.0,0.00013424,2]
[353938705,1740157843454,-500.0,0.00013424,2]
[353938706,1740157843463,-500.0,0.00013424,2]
[353938707,1740157843473,-500.0,0.00013424,2]
[353938708,1740157843483,-500.0,0.00013424,2]
[353938709,1740157843493,-500.0,0.00013424,2]
[353938710,1740157843502,-500.0,0.00013424,2]
[353938711,1740157843511,-500.0,0.00013424,2]
[353938712,1740157843523,-500.0,0.00013424,2]
[353938713,1740157843538,-500.0,0.00013424,2]
[353938714,1740157843547,-500.0,0.00013424,2]
[353938715,1740157843556,-500.0,0.00013424,2]
[353938716,1740157843566,-960.25,0.00013424,2]
[353938717,1740157843575,-209.48389964,0.00013424,2]
[353938718,1740157843584,-800.33,0.00013424,2]
[353938719,1740157843593,-612.1,0.00013424,2]
[353938720,1740157843603,-500.0,0.00013424,2]
[353938721,1740157843614,-500.0,0.00013424,2]
[353938722,1740157843624,-500.0,0.00013424,2]
[353938723,1740157843633,-500.0,0.00013424,2]
[353938724,1740157843643,-500.0,0.00013424,2]
[353938725,1740157843652,-500.0,0.00013424,2]
[353938726,1740157843664,-500.0,0.00013424,2]
[353938727,1740157843674,-500.0,0.00013424,2]
[353938728,1740157843684,-500.0,0.00013424,2]
[353938729,1740157843694,-500.0,0.00013424,2]
[353938730,1740157843705,-625.61,0.00013424,2]
[353938731,1740157843715,-500.0,0.00013424,2]
[353938732,1740157843724,-500.0,0.00013424,2]
[353938733,1740157843735,-500.0,0.00013424,2]
[353938734,1740157843745,-602.42,0.00013424,2]
[353938735,1740157843754,-500.0,0.00013424,2]
[353938736,1740157843764,-500.0,0.00013424,2]
[353938737,1740157843774,-500.0,0.00013424,2]
[353938738,1740157843783,-500.0,0.00013424,2]
[353938739,1740157843793,-500.0,0.00013424,2]
[353938740,1740157843803,-500.0,0.00013424,2]
[353938741,1740157843813,-500.0,0.00013424,2]
[353938742,1740157843822,-714.92,0.00013424,2]
[353938743,1740157843832,-500.0,0.00013424,2]
[353938744,1740157843841,-505.43465944,0.00013424,2]
[353938745,1740157843851,-500.0,0.00013424,2]
[353938746,1740157843860,-500.0,0.00013424,2]
[353938747,1740157843870,-500.0,0.00013424,2]
[353938748,1740157843880,-500.0,0.00013424,2]
[353938749,1740157843890,-500.0,0.00013424,2]
[353938750,1740157843899,-1226.4,0.00013424,2]
[353938751,1740157843911,-500.0,0.00013424,2]
[353938752,1740157843923,-500.0,0.00013424,2]
[353938753,1740157843932,-1062.82,0.00013424,2]
[353938754,1740157843942,-500.0,0.00013424,2]
[353938755,1740157843951,-500.0,0.00013424,2]
[353938756,1740157843961,-500.0,0.00013424,2]
[353938757,1740157843971,-552.32254116,0.00013424,2]
[353938758,1740157843980,-500.0,0.00013424,2]
[353938759,1740157843990,-500.0,0.00013424,2]
[353938760,1740157843999,-500.0,0.00013424,2]
[353938761,1740157844008,-500.0,0.00013424,2]
[353938762,1740157844017,-500.0,0.00013424,2]
[353938763,1740157844026,-808.22,0.00013424,2]
[353938764,1740157844035,-500.0,0.00013424,2]
[353938765,1740157844044,-500.0,0.00013424,2]
[353938766,1740157844054,-500.0,0.00013424,2]
[353938767,1740157844063,-500.0,0.00013424,2]
[353938768,1740157844072,-500.0,0.00013424,2]
[353938769,1740157844081,-500.0,0.00013424,2]
[353938770,1740157844091,-259.63317002,0.00013424,2]
[353938771,1740157844100,-500.0,0.00013424,2]
[353938772,1740157844109,-500.0,0.00013424,2]
[353938773,1740157844119,-500.0,0.00013424,2]
[353938774,1740157844128,-500.0,0.00013424,2]
[353938775,1740157844137,-500.0,0.00013424,2]
[353938776,1740157844147,-500.0,0.00013424,2]
[353938777,1740157844159,-500.0,0.00013424,2]
[353938778,1740157844169,-500.0,0.00013424,2]
[353938779,1740157844178,-500.0,0.00013424,2]
[353938780,1740157844187,-500.0,0.00013424,2]
[353938781,1740157844197,-500.0,0.00013424,2]
[353938782,1740157844206,-500.0,0.00013424,2]
[353938783,1740157844216,-1063.19,0.00013424,2]
[353938784,1740157844225,-500.0,0.00013424,2]
[353938785,1740157844234,-500.0,0.00013424,2]
[353938786,1740157844245,-519.35,0.00013424,2]
[353938787,1740157844256,-500.0,0.00013424,2]
[353938788,1740157844265,-1173.84,0.00013424,2]
[353938789,1740157844274,-500.0,0.00013424,2]
[353938790,1740157844284,-500.0,0.00013424,2]
[353938791,1740157844294,-500.0,0.00013424,2]
[353938792,1740157844304,-500.0,0.00013424,2]
[353938793,1740157844313,-500.0,0.00013424,2]
[353938794,1740157844324,-500.0,0.00013424,2]
[353938795,1740157844333,-500.0,0.00013424,2]
[353938796,1740157844342,-500.0,0.00013424,2]
[353938797,1740157844352,-500.0,0.00013424,2]
[353938798,1740157844362,-500.0,0.00013424,2]
[353938799,1740157844373,-500.0,0.00013424,2]
[353938800,1740157844382,-990.83,0.00013424,2]
[353938801,1740157844391,-1091.4,0.00013424,2]
[353938802,1740157844403,-500.0,0.00013424,2]
[353938803,1740157844415,-500.0,0.00013424,2]
[353938804,1740157844590,-500.0,0.00013424,2]
[353938805,1740157844599,-500.0,0.00013424,2]
[353938806,1740157844609,-500.0,0.00013424,2]
[353938807,1740157844619,-500.0,0.00013424,2]
[353938808,1740157844629,-500.0,0.00013424,2]
[353938809,1740157844638,-500.0,0.00013424,2]
[353938810,1740157844648,-543.1,0.00013424,2]
[353938811,1740157844659,-500.0,0.00013424,2]
[353938812,1740157844669,-500.0,0.00013424,2]
[353938813,1740157844678,-500.0,0.00013424,2]
[353938814,1740157844687,-547.23,0.00013424,2]
[353938815,1740157844696,-714.41,0.00013424,2]
[353938816,1740157844705,-729.38,0.00013424,2]
[353938817,1740157844714,-500.0,0.00013424,2]
[353938818,1740157844724,-500.0,0.00013424,2]
[353938819,1740157844735,-500.0,0.00013424,2]
[353938820,1740157844744,-500.0,0.00013424,2]
[353938821,1740157844754,-500.0,0.00013424,2]
[353938822,1740157844763,-520.14,0.00013424,2]
[353938823,1740157844773,-500.0,0.00013424,2]
[353938824,1740157844782,-691.59,0.00013424,2]
[353938825,1740157844791,-500.0,0.00013424,2]
[353938826,1740157844801,-503.77257148,0.00013424,2]
[353938827,1740157844810,-659.16,0.00013424,2]
[353938828,1740157844820,-500.0,0.00013424,2]
[353938829,1740157844829,-500.0,0.00013424,2]
[353938830,1740157844838,-500.0,0.00013424,2]
[353938831,1740157844847,-500.0,0.00013424,2]
[353938832,1740157844857,-500.0,0.00013424,2]
[353938833,1740157844867,-500.0,0.00013424,2]
[353938834,1740157844877,-500.0,0.00013424,2]
[353938835,1740157844886,-500.0,0.00013424,2]
[353938836,1740157844896,-500.0,0.00013424,2]
[353938837,1740157844905,-500.0,0.00013424,2]
[353938838,1740157844918,-500.0,0.00013424,2]
[353938839,1740157844927,-500.0,0.00013424,2]
[353938840,1740157844937,-592.08,0.00013424,2]
[353938841,1740157844946,-500.0,0.00013424,2]
[353938842,1740157844958,-2154.61,0.00013424,2]
[353938843,1740157844968,-500.0,0.00013424,2]
[353938844,1740157844977,-500.0,0.00013424,2]
[353938845,1740157844987,-639.53,0.00013424,2]
[353938846,1740157844996,-931.55,0.00013424,2]
[353938847,1740157845005,-500.0,0.00013424,2]
[353938848,1740157845015,-500.0,0.00013424,2]
[353938849,1740157845024,-1325.41,0.00013424,2]
[353938850,1740157845035,-500.0,0.00013424,2]
[353938851,1740157845044,-500.0,0.00013424,2]
[353938852,1740157845054,-500.0,0.00013424,2]
[353938853,1740157845063,-500.0,0.00013424,2]
[353938854,1740157845074,-500.0,0.00013424,2]
[353938855,1740157845083,-500.0,0.00013424,2]
[353938856,1740157845093,-500.0,0.00013424,2]
[353938857,1740157845103,-628.46,0.00013424,2]
[353938858,1740157845113,-500.0,0.00013424,2]
[353938859,1740157845122,-1060.06,0.00013424,2]
[353938860,1740157845133,-500.0,0.00013424,2]
[353938861,1740157845143,-904.34,0.00013424,2]
[353938862,1740157845153,-568.92,0.00013424,2]
[353938863,1740157845168,-500.0,0.00013424,2]
[353938864,1740157845177,-1341.48,0.00013424,2]
[353938865,1740157845187,-3951.32588183,0.00013424,2]
[353938866,1740157845196,-500.0,0.00013424,2]
[353938867,1740157845206,-1793.43,0.00013424,2]
[353938868,1740157845216,-500.0,0.00013424,2]
[353938869,1740157845226,-500.0,0.00013424,2]
[353938870,1740157845236,-500.0,0.00013424,2]
[353938871,1740157845246,-500.0,0.00013424,2]
[353938872,1740157845255,-506.39093739,0.00013424,2]
[353938873,1740157845266,-500.0,0.00013424,2]
[353938874,1740157845277,-1405.5,0.00013424,2]
[353938875,1740157845287,-500.0,0.00013424,2]
[353938876,1740157845296,-3199.42,0.00013424,2]
[353938877,1740157845306,-500.0,0.00013424,2]
[353938878,1740157845316,-500.0,0.00013424,2]
[353938879,1740157845326,-500.79,0.00013424,2]
[353938880,1740157845336,-500.0,0.00013424,2]
[353938881,1740157845345,-426.89135905,0.00013424,2]
[353938882,1740157845355,-949.44,0.00013424,2]
[353938883,1740157845365,-500.0,0.00013424,2]
[353938884,1740157845375,-500.0,0.00013424,2]
[353938885,1740157845385,-500.0,0.00013424,2]
[353938886,1740157845395,-500.0,0.00013424,2]
[353938887,1740157845404,-1259.55,0.00013424,2]
[353938888,1740157845418,-1682.92,0.00013424,2]
[353938889,1740157845427,-795.86,0.00013424,2]
[353938890,1740157845437,-500.0,0.00013424,2]
[353938891,1740157845446,-500.0,0.00013424,2]
[353938892,1740157845456,-2481.28,0.00013424,2]
[353938893,1740157845465,-500.0,0.00013424,2]
[353938894,1740157845476,-944.01,0.00013424,2]
[353938895,1740157845486,-500.0,0.00013424,2]
[353938896,1740157845495,-500.0,0.00013424,2]
[353938897,1740157845505,-500.0,0.00013424,2]
[353938898,1740157845515,-502.24877568,0.00013424,2]
[353938899,1740157845526,-546.69,0.00013424,2]
[353938900,1740157845539,-500.0,0.00013424,2]
[353938901,1740157845548,-1013.85,0.00013424,2]
[353938902,1740157845558,-1079.55,0.00013424,2]
[353938903,1740157845567,-500.0,0.00013424,2]
[353938904,1740157845579,-1894.42,0.00013424,2]
[353938905,1740157845588,-500.0,0.00013424,2]
[353938906,1740157845598,-920.43,0.00013424,2]
[353938907,1740157845608,-500.0,0.00013424,2]
[353938908,1740157845617,-2722.21,0.00013424,2]
[353938909,1740157845627,-500.0,0.00013424,2]
[353938910,1740157845637,-500.0,0.00013424,2]
[353938911,1740157845647,-500.0,0.00013424,2]
[353938912,1740157845662,-563.83,0.00013424,2]
[353938913,1740157845671,-813.01,0.00013424,2]
[353938914,1740157845681,-500.0,0.00013424,2]
[353938915,1740157845691,-500.0,0.00013424,2]
[353938916,1740157845702,-500.0,0.00013424,2]
[353938917,1740157845713,-500.0,0.00013424,2]
[353938918,1740157845722,-802.97,0.00013424,2]
[353938919,1740157845732,-500.0,0.00013424,2]
[353938920,1740157845742,-500.0,0.00013424,2]
[353938921,1740157845753,-1837.86,0.00013424,2]
[353938922,1740157845762,-500.0,0.00013424,2]
[353938923,1740157845772,-543.68,0.00013424,2]
[353938924,1740157845782,-1963.41,0.00013424,2]
[353938925,1740157845792,-836.9,0.00013424,2]
[353938926,1740157845801,-582.2,0.00013424,2]
[353938927,1740157845812,-500.0,0.00013424,2]
[353938928,1740157845822,-500.0,0.00013424,2]
[353938929,1740157845831,-500.0,0.00013424,2]
[353938930,1740157845841,-791.91,0.00013424,2]
[353938931,1740157845851,-1062.84,0.00013424,2]
[353938932,1740157845860,-2386.19,0.00013424,2]
[353938933,1740157845870,-500.0,0.00013424,2]
[353938934,1740157845880,-694.06,0.00013424,2]
[353938935,1740157845889,-6018.4,0.00013424,2]
[353938936,1740157845899,-652.68,0.00013424,2]
[353938937,1740157845913,-500.0,0.00013424,2]
[353938938,1740157845922,-604.57,0.00013424,2]
[353938939,1740157845934,-500.0,0.00013424,2]
[353938940,1740157845943,-500.0,0.00013424,2]
[353938941,1740157845952,-1611.59,0.00013424,2]
[353938942,1740157845962,-799.58,0.00013424,2]
[353938943,1740157845971,-500.0,0.00013424,2]
[353938944,1740157845980,-1417.91,0.00013424,2]
[353938945,1740157845989,-500.0,0.00013424,2]
[353938946,1740157845999,-500.0,0.00013424,2]
[353938947,1740157846008,-500.0,0.00013424,2]
[353938948,1740157846018,-524.65643236,0.00013424,2]
[353938949,1740157846028,-521.28,0.00013424,2]
[353938950,1740157846038,-1821.53,0.00013424,2]
[353938951,1740157846047,-158.04,0.00013424,2]
[353938952,1740157846057,-3173.32,0.00013424,2]
[353938953,1740157846066,-693.23,0.00013424,2]
[353938954,1740157846075,-500.0,0.00013424,2]
[353938955,1740157846085,-500.0,0.00013424,2]
[353938956,1740157846095,-1899.41,0.00013424,2]
[353938957,1740157846104,-1558.21,0.00013424,2]
[353938958,1740157846114,-500.0,0.00013424,2]
[353938959,1740157846123,-1422.16,0.00013424,2]
[353938960,1740157846133,-500.0,0.00013424,2]
[353938961,1740157846144,-380.13848496,0.00013424,2]
[353938962,1740157846157,-500.0,0.00013424,2]
[353938963,1740157846169,-500.0,0.00013424,2]
[353938964,1740157846178,-1527.59,0.00013424,2]
[353938965,1740157846188,-736.35,0.00013424,2]
[353938966,1740157846198,-508.6420564,0.00013424,2]
[353938967,1740157846208,-500.0,0.00013424,2]
[353938968,1740157846217,-500.0,0.00013424,2]
[353938969,1740157846227,-500.0,0.00013424,2]
[353938970,1740157846236,-500.0,0.00013424,2]
[353938971,1740157846245,-500.0,0.00013424,2]
[353938972,1740157846255,-500.0,0.00013424,2]
[353938973,1740157846266,-500.0,0.00013424,2]
[353938974,1740157846276,-1468.43,0.00013424,2]
[353938975,1740157846286,-697.11,0.00013424,2]
[353938976,1740157846298,-1493.57,0.00013424,2]
[353938977,1740157846308,-500.0,0.00013424,2]
[353938978,1740157846319,-500.0,0.00013424,2]
[353938979,1740157846329,-500.0,0.00013424,2]
[353938980,1740157846338,-1303.8,0.00013424,2]
[353938981,1740157846347,-1907.79,0.00013424,2]
[353938982,1740157846356,-500.0,0.00013424,2]
[353938983,1740157846365,-500.0,0.00013424,2]
[353938984,1740157846374,-500.0,0.00013424,2]
[353938985,1740157846384,-500.0,0.00013424,2]
[353938986,1740157846393,-500.0,0.00013424,2]
[353938987,1740157846402,-500.0,0.00013424,2]
[353938988,1740157846413,-940.62,0.00013424,2]
[353938989,1740157846422,-500.0,0.00013424,2]
[353938990,1740157846431,-527.47,0.00013424,2]
[353938991,1740157846441,-500.0,0.00013424,2]
[353938992,1740157846450,-500.0,0.00013424,2]
[353938993,1740157846461,-500.0,0.00013424,2]
[353938994,1740157846470,-2058.06,0.00013424,2]
[353938995,1740157846479,-1569.33,0.00013424,2]
[353938996,1740157846488,-502.34789651,0.00013424,2]
[353938997,1740157846498,-500.0,0.00013424,2]
[353938998,1740157846507,-1573.91,0.00013424,2]
[353938999,1740157846516,-1102.95,0.00013424,2]
[353939000,1740157846526,-500.0,0.00013424,2]
[353939001,1740157846539,-2546.0,0.00013424,2]
[353939002,1740157846548,-846.55,0.00013424,2]
[353939003,1740157846557,-525.83,0.00013424,2]
[353939004,1740157846567,-902.78,0.00013424,2]
[353939005,1740157846579,-500.0,0.00013424,2]
[353939006,1740157846588,-2181.88,0.00013424,2]
[353939007,1740157846598,-500.0,0.00013424,2]
[353939008,1740157846608,-660.87,0.00013424,2]
[353939009,1740157846620,-500.0,0.00013424,2]
[353939010,1740157846630,-500.0,0.00013424,2]
[353939011,1740157846641,-1911.15,0.00013424,2]
[353939012,1740157846650,-500.0,0.00013424,2]
[353939013,1740157846664,-1694.5,0.00013424,2]
[353939014,1740157846676,-500.0,0.00013424,2]
[353939015,1740157846685,-500.0,0.00013424,2]
[353939016,1740157846695,-500.0,0.00013424,2]
[353939017,1740157846705,-880.42,0.00013424,2]
[353939018,1740157846715,-2016.91,0.00013424,2]
[353939019,1740157846725,-929.43,0.00013424,2]
[353939020,1740157846735,-500.0,0.00013424,2]
[353939021,1740157846745,-500.0,0.00013424,2]
[353939022,1740157846755,-500.0,0.00013424,2]
[353939023,1740157846764,-539.25,0.00013424,2]
[353939024,1740157846774,-689.54,0.00013424,2]
[353939025,1740157846784,-2120.62,0.00013424,2]
[353939026,1740157846794,-938.44,0.00013424,2]
[353939027,1740157846803,-500.0,0.00013424,2]
[353939028,1740157846813,-1763.46,0.00013424,2]
[353939029,1740157846823,-2307.16,0.00013424,2]
[353939030,1740157846833,-2010.92,0.00013424,2]
[353939031,1740157846843,-1496.69,0.00013424,2]
[353939032,1740157846852,-500.0,0.00013424,2]
[353939033,1740157846863,-1335.71,0.00013424,2]
[353939034,1740157846873,-1071.07,0.00013424,2]
[353939035,1740157846884,-892.95,0.00013424,2]
[353939036,1740157846894,-500.0,0.00013424,2]
[353939037,1740157846905,-500.0,0.00013424,2]
[353939038,1740157846920,-500.0,0.00013424,2]
[353939039,1740157846929,-2275.78,0.00013424,2]
[353939040,1740157846938,-3077.5,0.00013424,2]
[353939041,1740157846948,-763.59,0.00013424,2]
[353939042,1740157846957,-878.16,0.00013424,2]
[353939043,1740157846967,-223.87600735,0.00013424,2]
[353939044,1740157846976,-2437.27,0.00013424,2]
[353939045,1740157846986,-500.0,0.00013424,2]
[353939046,1740157846995,-500.0,0.00013424,2]
[353939047,1740157847006,-500.0,0.00013424,2]
[353939048,1740157847015,-2831.25,0.00013424,2]
[353939049,1740157847025,-812.48,0.00013424,2]
[353939050,1740157847034,-901.21,0.00013424,2]
[353939051,1740157847045,-535.93,0.00013424,2]
[353939052,1740157847054,-500.0,0.00013424,2]
[353939053,1740157847063,-500.0,0.00013424,2]
[353939054,1740157847073,-500.0,0.00013424,2]
[353939055,1740157847083,-3396.78,0.00013424,2]
[353939056,1740157847093,-500.0,0.00013424,2]
[353939057,1740157847102,-500.0,0.00013424,2]
[353939058,1740157847111,-500.0,0.00013424,2]
[353939059,1740157847121,-500.0,0.00013424,2]
[353939060,1740157847130,-500.0,0.00013424,2]
[353939061,1740157847140,-500.0,0.00013424,2]
[353939062,1740157847149,-741.65,0.00013424,2]
[353939063,1740157847159,-500.0,0.00013424,2]
[353939064,1740157847171,-500.0,0.00013424,2]
[353939065,1740157847180,-2128.15,0.00013424,2]
[353939066,1740157847190,-607.22,0.00013424,2]
[353939067,1740157847199,-500.0,0.00013424,2]
[353939068,1740157847209,-500.0,0.00013424,2]
[353939069,1740157847219,-589.65,0.00013424,2]
[353939070,1740157847229,-857.79,0.00013424,2]
[353939071,1740157847239,-500.0,0.00013424,2]
[353939072,1740157847248,-1623.87,0.00013424,2]
[353939073,1740157847257,-835.79,0.00013424,2]
[353939074,1740157847267,-500.0,0.00013424,2]
[353939075,1740157847276,-500.0,0.00013424,2]
[353939076,1740157847286,-501.63340414,0.00013424,2]
[353939077,1740157847295,-500.0,0.00013424,2]
[353939078,1740157847304,-500.0,0.00013424,2]
[353939079,1740157847313,-1019.31,0.00013424,2]
[353939080,1740157847323,-1762.6,0.00013424,2]
[353939081,1740157847333,-1705.9,0.00013424,2]
[353939082,1740157847342,-387.67684375,0.00013424,2]
[353939083,1740157847351,-880.86,0.00013424,2]
[353939084,1740157847361,-866.93,0.00013424,2]
[353939085,1740157847370,-500.0,0.00013424,2]
[353939086,1740157847380,-500.0,0.00013424,2]
[353939087,1740157847389,-1427.47,0.00013424,2]
[353939088,1740157847399,-524.92,0.00013424,2]
[353939089,1740157847408,-2473.33,0.00013424,2]
[353939090,1740157847579,-500.0,0.00013424,2]
[353939091,1740157847594,-500.0,0.00013424,2]
[353939092,1740157847603,-617.9,0.00013424,2]
[353939093,1740157847614,-500.0,0.00013424,2]
[353939094,1740157847624,-2095.02,0.00013424,2]
[353939095,1740157847634,-500.0,0.00013424,2]
[353939096,1740157847644,-741.06,0.00013424,2]
[353939097,1740157847654,-500.0,0.00013424,2]
[353939098,1740157847667,-500.0,0.00013424,2]
[353939099,1740157847676,-500.0,0.00013424,2]
[353939100,1740157847685,-500.0,0.00013424,2]
[353939101,1740157847695,-698.68,0.00013424,2]
[353939102,1740157847704,-3567.07,0.00013424,2]
[353939103,1740157847713,-242.74662005,0.00013424,2]
[353939104,1740157847723,-921.24,0.00013424,2]
[353939105,1740157847735,-500.0,0.00013424,2]
[353939106,1740157847745,-1143.24,0.00013424,2]
[353939107,1740157847754,-616.76,0.00013424,2]
[353939108,1740157847763,-1128.05,0.00013424,2]
[353939109,1740157847773,-500.0,0.00013424,2]
[353939110,1740157847782,-508.84231953,0.00013424,2]
[353939111,1740157847792,-2485.28,0.00013424,2]
[353939112,1740157847801,-500.0,0.00013424,2]
[353939113,1740157847811,-1240.33,0.00013424,2]
[353939114,1740157847820,-731.81,0.00013424,2]
[353939115,1740157847829,-645.29,0.00013424,2]
[353939116,1740157847839,-500.0,0.00013424,2]
[353939117,1740157847848,-500.0,0.00013424,2]
[353939118,1740157847858,-162.27210777,0.00013424,2]
[353939119,1740157847867,-608.09,0.00013424,2]
[353939120,1740157847877,-500.0,0.00013424,2]
[353939121,1740157847886,-935.27,0.00013424,2]
[353939122,1740157847895,-500.0,0.00013424,2]
[353939123,1740157847905,-500.0,0.00013424,2]
[353939124,1740157847916,-729.64,0.00013424,2]
[353939125,1740157847925,-500.0,0.00013424,2]
[353939126,1740157847935,-1367.45,0.00013424,2]
[353939127,1740157847944,-789.15,0.00013424,2]
[353939128,1740157847953,-500.0,0.00013424,2]
[353939129,1740157847963,-548.79,0.00013424,2]
[353939130,1740157847972,-1009.13,0.00013424,2]
[353939131,1740157847981,-500.0,0.00013424,2]
[353939132,1740157847990,-1659.01,0.00013424,2]
[353939133,1740157847999,-306.42849422,0.00013424,2]
[353939134,1740157848008,-500.0,0.00013424,2]
[353939135,1740157848018,-500.0,0.00013424,2]
[353939136,1740157848027,-713.96,0.00013424,2]
[353939137,1740157848037,-500.0,0.00013424,2]
[353939138,1740157848046,-542.66,0.00013424,2]
[353939139,1740157848056,-500.0,0.00013424,2]
[353939140,1740157848065,-1096.38,0.00013424,2]
[353939141,1740157848074,-499.6487,0.00013424,2]
[353939142,1740157848083,-2326.28,0.00013424,2]
[353939143,1740157848093,-246.17470534,0.00013424,2]
[353939144,1740157848102,-6142.11,0.00013424,2]
[353939145,1740157848111,-2169.53,0.00013424,2]
[353939146,1740157848121,-500.0,0.00013424,2]
[353939147,1740157848130,-500.0,0.00013424,2]
[353939148,1740157848139,-500.0,0.00013424,2]
[353939149,1740157848149,-860.2,0.00013424,2]
[353939150,1740157848158,-987.66,0.00013424,2]
[353939151,1740157848170,-500.0,0.00013424,2]
[353939152,1740157848179,-549.88,0.00013424,2]
[353939153,1740157848188,-500.0,0.00013424,2]
[353939154,1740157848199,-500.0,0.00013424,2]
[353939155,1740157848208,-992.81,0.00013424,2]
[353939156,1740157848218,-4741.54,0.00013424,2]
[353939157,1740157848228,-500.0,0.00013424,2]
[353939158,1740157848237,-500.0,0.00013424,2]
[353939159,1740157848246,-500.0,0.00013424,2]
[353939160,1740157848256,-1279.41,0.00013424,2]
[353939161,1740157848266,-5504.2,0.00013424,2]